bitfinex/quotes_ETHUSD_20241116
["timestamp","ask_amount","ask_price","bid_price","bid_amount"]
[1731721176683,3.22428,3101.5,3101.2,0.764]
[1731721176888,3.22437,3101.4,3101.1,0.33650711]
[1731721178227,3.22437,3101.4,3100.4,0.48720628]
[1731721178228,3.22455,3101.2,3100.6,0.764]
[1731721178389,3.22455,3101.2,3100.8,0.06]
[1731721178589,3.22477,3101.0,3100.8,0.06]
[1731721178994,6.44963,3101.0,3100.8,0.06]
[1731721179299,3.22477,3101.0,3100.6,1.10053414]
[1731721179904,3.2246,3101.2,3100.6,1.10053414]
[1731721179905,3.22458,3101.2,3100.7,3.22501]
[1731721180132,3.22458,3101.2,3100.6,4.39014312]
[1731721180434,3.22458,3101.2,3100.7,3.0]
[1731721180633,3.22483,3101.0,3100.6,1.10053414]
[1731721180798,3.22483,3101.0,3100.6,4.89904339]
[1731721182664,3.22483,3101.0,3100.6,1.89904339]
[1731721182935,3.22458,3101.2,3100.6,5.12421339]
[1731721183103,3.22458,3101.2,3100.7,3.0]
[1731721183699,3.22458,3101.2,3100.6,1.89904339]
[1731721183898,3.22474,3101.1,3100.6,1.89904339]
[1731721184999,3.22474,3101.1,3100.6,0.33653414]
[1731721185000,3.22507,3100.7,3100.6,0.33653414]
[1731721185199,3.22507,3100.7,3100.3,0.63166849]
[1731721185200,3.22529,3100.5,3100.3,0.63166849]
[1731721185741,3.22539,3100.4,3100.3,0.63166849]
[1731721188197,3.22559,3100.2,3099.7,0.764]
[1731721188353,3.22576,3100.1,3099.7,0.764]
[1731721188886,3.22511,3100.7,3099.7,0.764]
[1731721188887,6.45014,3100.7,3099.7,0.764]
[1731721189061,3.22528,3100.5,3099.4,0.8865]
[1731721189383,3.22596,3099.9,3099.4,0.8865]
[1731721190789,3.22596,3099.9,3099.4,5.24349651]
[1731721191798,3.22553,3100.3,3099.5,3.0]
[1731721191998,3.22573,3100.1,3099.6,3.22613]
[1731721192867,3.22573,3100.1,3099.6,4.0795388]
[1731721193953,3.22573,3100.1,3099.6,0.8534088]
[1731721194184,3.22573,3100.1,3099.5,3.0]
[1731721194185,3.22573,3100.1,3099.5,6.22632]
[1731721194699,3.22573,3100.1,3099.5,3.0]
[1731721194859,3.2258,3100.0,3099.5,3.0]
[1731721195054,3.22573,3100.1,3099.5,3.0]
[1731721195691,3.22595,3099.9,3099.4,2.01707651]
[1731721195870,3.22595,3099.9,3099.5,3.0]
[1731721196188,3.22573,3100.1,3099.5,3.0]
[1731721196774,3.2258,3100.0,3099.5,3.0]
[1731721198301,3.22554,3100.3,3099.5,3.92252842]
[1731721198593,3.22554,3100.3,3099.8,0.7865]
[1731721200105,0.03060058,3100.2,3099.8,0.7865]
[1731721200408,3.22512,3100.7,3100.2,3.22556]
[1731721200558,3.22512,3100.7,3100.3,0.322556]
[1731721200749,3.22512,3100.7,3100.2,3.22556]
[1731721200950,0.7757,3100.9,3100.1,3.0]
[1731721201156,3.22527,3100.6,3099.9,3.0]
[1731721201368,0.7757,3100.9,3099.5,0.85800854]
[1731721201369,3.22566,3100.2,3099.7,3.0]
[1731721201555,3.22581,3100.0,3099.5,4.64450854]
[1731721201755,3.22566,3100.2,3099.5,3.7865]
[1731721202058,3.22524,3100.6,3100.0,0.7865]
[1731721202272,3.22524,3100.6,3100.1,0.40123]
[1731721202500,3.22531,3100.5,3100.0,0.7865]
[1731721202678,3.22514,3100.7,3100.0,7.0123]
[1731721202857,3.22514,3100.7,3100.0,7.71346]
[1731721203058,3.22514,3100.7,3100.1,3.29019827]
[1731721203304,3.22481,3101.0,3100.4,3.22531]
[1731721203305,6.44966,3101.0,3100.4,3.22531]
[1731721203506,3.22481,3101.0,3100.4,3.22531]
[1731721203716,3.22481,3101.0,3100.4,3.8704]
[1731721204506,0.7757,3101.1,3100.4,0.64509]
[1731721204507,3.22518,3100.6,3100.4,0.64509]
[1731721204689,3.22518,3100.6,3100.1,6.22569]
[1731721204890,3.22505,3100.8,3100.2,3.22552]
[1731721205103,3.22496,3100.9,3100.1,6.22569]
[1731721205271,3.22496,3100.9,3100.3,3.22548]
[1731721205459,3.22496,3100.9,3100.4,0.322548]
[1731721205860,3.225,3100.8,3100.4,0.322548]
[1731721208288,3.22482,3101.0,3100.4,3.547908]
[1731721208516,0.7757,3101.1,3100.4,0.322548]
[1731721208721,3.22495,3100.9,3100.4,0.322548]
[1731721209130,3.22495,3100.9,3100.4,3.547928]
[1731721209302,3.22501,3100.8,3100.4,0.322548]
[1731721209499,3.22501,3100.8,3100.2,3.22554]
[1731721209789,3.2251,3100.7,3100.1,6.22564]
[1731721210610,3.2251,3100.7,3100.2,3.22557]
[1731721210806,3.2251,3100.7,3100.1,0.07]
[1731721211009,3.2251,3100.7,3100.2,3.455773]
[1731721211339,3.22498,3100.8,3100.2,6.681363]
[1731721211849,0.7757,3101.1,3100.2,6.681363]
[1731721211850,0.7757,3101.1,3100.2,3.455773]
[1731721212012,3.22517,3100.7,3100.2,3.455773]
[1731721212329,3.22476,3101.0,3100.2,0.455773]
[1731721212491,3.22531,3100.5,3100.0,3.7865]
[1731721212686,3.22536,3100.5,3100.0,4.487735]
[1731721212892,3.22543,3100.4,3100.0,4.487735]
[1731721213088,3.624789,3101.0,3099.7,3.86625681]
[1731721213089,3.22566,3100.2,3099.7,4.41625681]
[1731721213347,3.22577,3100.1,3099.7,4.41625681]
[1731721213640,3.22577,3100.1,3099.7,1.41625681]
[1731721213864,3.22577,3100.1,3099.7,5.21416158]
[1731721214156,3.22589,3100.0,3099.7,1.41625681]
[1731721214354,3.22566,3100.2,3099.7,1.41625681]
[1731721214512,3.22566,3100.2,3099.8,0.17527977]
[1731721214710,3.2258,3100.0,3099.8,0.17527977]
[1731721215143,3.25633072,3099.9,3099.7,0.7761]
[1731721215744,0.03041072,3099.9,3099.7,0.7761]
[1731721216963,3.2257,3100.1,3099.7,0.7761]
[1731721217118,0.03034629,3099.8,3099.7,0.7761]
[1731721217519,0.03034629,3099.8,3099.7,3.7761]
[1731721217654,3.2256,3100.2,3099.7,4.47633]
[1731721217856,0.03034629,3099.8,3099.7,4.47633]
[1731721218178,3.22576,3100.1,3099.7,3.7761]
[1731721218328,0.03034629,3099.8,3099.7,3.7761]
[1731721218534,3.22576,3100.1,3099.7,3.7761]
[1731721218771,0.03034629,3099.8,3099.7,3.7761]
[1731721219081,3.22581,3100.0,3099.5,3.0]
[1731721219276,0.03034629,3099.8,3099.5,3.0]
[1731721219583,3.22581,3100.0,3099.5,6.22631]
[1731721219734,0.03026818,3099.7,3099.5,3.0]
[1731721219929,3.22581,3100.0,3099.5,3.0]
[1731721220135,0.8218,3100.1,3099.5,6.22626]
[1731721220136,0.03020374,3099.6,3099.5,6.22626]
[1731721220428,0.03020374,3099.6,3099.5,6.76926359]
[1731721220644,4.04753,3100.1,3099.5,6.76926359]
[1731721220973,0.03045806,3100.0,3099.5,6.76926359]
[1731721222046,3.25632806,3100.0,3099.5,0.54300359]
[1731721222351,3.25632806,3100.0,3099.5,3.0]
[1731721222747,3.22587,3100.0,3099.5,6.22632]
[1731721222949,0.03039364,3099.9,3099.5,6.22632]
[1731721223354,0.03039364,3099.9,3099.6,3.22619]
[1731721223671,3.2257,3100.1,3099.6,3.22619]
[1731721223876,0.0303292,3099.8,3099.6,3.22619]
[1731721224073,3.2257,3100.1,3099.6,0.410229]
[1731721224275,0.03026477,3099.7,3099.6,3.0]
[1731721224450,0.8218,3100.3,3099.4,4.10251]
[1731721224451,3.22596,3099.9,3099.4,4.10251]
[1731721224650,0.03026477,3099.7,3099.4,4.10251]
[1731721224975,3.22596,3099.9,3099.5,0.33653732]
[1731721225175,0.03020033,3099.6,3099.5,0.33653732]
[1731721226036,3.22596,3099.9,3099.5,0.33653732]
[1731721226579,0.0303292,3099.8,3099.5,0.33653732]
[1731721226954,6.45147,3100.1,3099.5,0.33653732]
[1731721227282,3.2258,3100.0,3099.5,0.33653732]
[1731721227438,3.25625806,3100.0,3099.5,0.33653732]
[1731721228736,3.25625806,3100.0,3099.5,3.56282732]
[1731721230262,0.03045806,3100.0,3099.5,3.56282732]
[1731721231052,0.03045806,3100.0,3099.6,3.2262]
[1731721231252,0.03045806,3100.0,3099.5,3.56283732]
[1731721231450,0.03045806,3100.0,3099.6,3.2262]
[1731721232633,0.06359674,3100.0,3099.6,3.2262]
[1731721233096,0.06359674,3100.0,3099.5,0.33653732]
[1731721233395,0.06359674,3100.0,3099.5,3.56282732]
[1731721233695,0.06359674,3100.0,3099.6,3.2262]
[1731721233996,0.06359674,3100.0,3099.5,0.33653732]
[1731721234155,0.06359674,3100.0,3099.5,3.56283732]
[1731721235959,0.06359674,3100.0,3099.6,3.22617]
[1731721236155,0.8218,3100.3,3099.8,3.22594]
[1731721236364,0.06312781,3099.9,3099.8,3.22593]
[1731721236564,0.8218,3100.3,3099.8,3.22593]
[1731721236771,0.06312754,3099.9,3099.8,3.22593]
[1731721237005,4.04732,3100.3,3099.8,3.22593]
[1731721237466,0.0633176,3100.2,3099.8,3.22593]
[1731721237664,4.04732,3100.3,3099.8,3.22593]
[1731721237914,0.06325425,3100.1,3099.8,3.22593]
[1731721238115,4.04732,3100.3,3099.8,3.22593]
[1731721238313,0.0631909,3100.0,3099.6,6.4523]
[1731721238467,3.22559,3100.2,3099.7,3.46476626]
[1731721238673,0.06312754,3099.9,3099.8,0.23866626]
[1731721239017,3.22559,3100.2,3099.8,0.23866626]
[1731721239216,0.06312754,3099.9,3099.8,0.23866626]
[1731721239873,0.06312754,3099.9,3099.6,0.23866626]
[1731721240066,0.06312754,3099.9,3099.7,0.23866626]
[1731721240411,0.06312754,3099.9,3099.5,6.78910732]
[1731721240611,0.06312754,3099.9,3099.8,0.23883633]
[1731721240771,0.8218,3100.3,3099.8,0.23883633]
[1731721240972,0.06312754,3099.9,3099.7,3.22605]
[1731721241196,4.04733,3100.3,3099.7,3.22605]
[1731721241387,4.04733,3100.3,3099.6,3.46499633]
[1731721241388,3.22564,3100.2,3099.6,3.46499633]
[1731721241690,3.2889576,3100.2,3099.6,3.46499633]
[1731721241874,3.2889576,3100.2,3099.7,0.23883633]
[1731721242088,3.2889576,3100.2,3099.8,0.23883633]
[1731721242489,3.2889576,3100.2,3099.9,0.23883633]
[1731721242782,3.2889576,3100.2,3100.0,0.23883633]
[1731721242985,3.2889576,3100.2,3099.6,3.22616]
[1731721243188,3.2889576,3100.2,3099.7,0.23896944]
[1731721243388,3.2889576,3100.2,3099.8,0.23896944]
[1731721243603,3.2889576,3100.2,3099.6,3.22616]
[1731721243604,3.2889576,3100.2,3099.9,0.23896944]
[1731721243799,3.2889576,3100.2,3099.6,3.22616]
[1731721244028,3.2889576,3100.2,3100.0,0.23897739]
[1731721244192,3.2889576,3100.2,3099.6,3.22616]
[1731721244193,3.22576,3100.1,3099.6,3.22616]
[1731721244593,0.0631909,3100.0,3099.7,0.23900124]
[1731721244895,0.0631909,3100.0,3099.8,0.23900124]
[1731721245139,3.2256,3100.2,3099.9,0.23900124]
[1731721245432,3.2256,3100.2,3100.0,0.23900124]
[1731721245745,3.2256,3100.2,3099.6,3.22615]
[1731721245894,3.22576,3100.1,3099.7,0.23908031]
[1731721246094,3.22576,3100.1,3099.8,0.23908031]
[1731721246398,3.22576,3100.1,3099.9,0.23908031]
[1731721246600,3.22576,3100.1,3099.6,3.22615]
[1731721246794,3.22576,3100.1,3099.7,0.23907337]
[1731721247028,3.22576,3100.1,3099.8,0.23907337]
[1731721247401,3.22576,3100.1,3099.9,0.23907337]
[1731721247647,3.22576,3100.1,3099.6,3.22615]
[1731721247839,3.22576,3100.1,3099.7,0.23910715]
[1731721248038,3.22576,3100.1,3099.6,3.22615]
[1731721248039,3.22576,3100.1,3099.8,0.23910715]
[1731721248348,3.22576,3100.1,3099.9,0.23910715]
[1731721248506,3.22576,3100.1,3099.6,3.22615]
[1731721248707,3.22576,3100.1,3099.7,0.2391062]
[1731721248906,3.22576,3100.1,3099.8,0.2391062]
[1731721249101,3.22576,3100.1,3099.9,0.2391062]
[1731721249338,3.22576,3100.1,3099.6,3.22615]
[1731721249652,3.22576,3100.1,3099.7,0.23905831]
[1731721249822,3.22576,3100.1,3099.8,0.23905831]
[1731721250024,3.22576,3100.1,3099.9,0.23905831]
[1731721250217,3.22576,3100.1,3099.5,3.56280895]
[1731721250428,3.22599,3099.9,3099.6,0.23903209]
[1731721250618,0.7756,3099.8,3099.7,0.23903209]
[1731721251467,0.7756,3099.8,3099.7,0.2389663]
[1731721253553,4.00141,3100.0,3099.7,0.2389663]
[1731721253762,4.00141,3100.0,3099.8,0.2389663]
[1731721254065,4.00141,3100.0,3099.5,0.33650895]
[1731721254229,4.00141,3100.0,3099.5,1.00279684]
[1731721254424,4.00141,3100.0,3099.6,0.23889601]
[1731721254723,3.22593,3099.9,3099.6,0.23889601]
[1731721255070,3.22593,3099.9,3099.7,0.23888492]
[1731721255231,3.22601,3099.8,3099.7,0.23889601]
[1731721255578,3.22601,3099.8,3099.7,0.23887818]
[1731721256065,3.22593,3099.9,3099.7,0.23887818]
[1731721256066,3.22593,3099.9,3099.7,0.47773646]
[1731721256242,3.22593,3099.9,3099.8,0.23885828]
[1731721256967,3.22593,3099.9,3099.5,0.33650895]
[1731721256968,3.22593,3099.9,3099.6,0.23885828]
[1731721257367,3.22593,3099.9,3099.7,0.23885828]
[1731721257571,3.22593,3099.9,3099.8,0.23885828]
[1731721258259,4.00146,3100.0,3099.8,0.23885828]
[1731721258632,4.00146,3100.0,3099.5,0.33650895]
[1731721258832,4.00146,3100.0,3099.5,1.00280084]
[1731721259876,0.7756,3100.0,3099.5,7.22906084]
[1731721260081,0.05784873,3099.9,3099.5,7.22906084]
[1731721260280,0.05784873,3099.9,3099.6,0.7666]
[1731721260585,3.22565,3100.2,3099.7,4.02564608]
[1731721260868,0.05778537,3099.8,3099.7,4.02564608]
[1731721261171,0.05778537,3099.8,3099.7,7.25170608]
[1731721261332,4.00111,3100.3,3099.7,4.02562608]
[1731721261534,0.05778537,3099.8,3099.7,4.02562608]
[1731721261749,4.00111,3100.3,3099.7,4.02562608]
[1731721261950,4.00111,3100.3,3099.8,0.47922261]
[1731721263063,3.22597,3099.9,3099.6,0.33655885]
[1731721267085,3.77611,3099.7,3099.6,0.33655885]
[1731721267298,3.77611,3099.7,3099.4,0.1]
[1731721267299,3.77632,3099.5,3099.4,0.1]
[1731721267443,6.14904106,3099.5,3099.4,0.1]
[1731721267784,5.39379806,3099.5,3099.4,0.1]
[1731721268588,4.84358806,3099.7,3099.4,0.1]
[1731721268742,0.55,3099.6,3099.4,0.1]
[1731721269464,3.77622,3099.6,3099.4,0.1]
[1731721270691,3.22632,3099.5,3099.4,0.1]
[1731721270910,4.84379806,3099.5,3099.4,0.1]
[1731721271485,6.25578887,3099.5,3099.4,0.1]
[1731721271701,5.45991081,3099.5,3099.4,0.1]
[1731721273287,5.46991081,3099.5,3099.4,0.1]
[1731721274708,3.77768,3098.2,3098.1,0.43672092]
[1731721274922,3.77768,3098.2,3098.1,0.1]
[1731721274923,4.478204,3098.2,3098.1,0.1]
[1731721275067,4.53294979,3098.2,3098.1,0.1]
[1731721275502,6.17042785,3098.2,3098.1,0.1]
[1731721275702,6.99202785,3098.2,3098.1,0.1]
[1731721276764,5.35454979,3098.2,3098.1,0.1]
[1731721276968,8.16462501,3098.2,3098.1,0.1]
[1731721277772,7.34302501,3098.2,3098.1,0.1]
[1731721277973,0.05474579,3098.2,3098.1,0.1]
[1731721278200,4.0489,3098.6,3098.1,0.1]
[1731721278201,3.51059922,3098.5,3098.1,0.1]
[1731721278407,0.05102825,3098.2,3098.1,0.1]
[1731721278572,3.51059922,3098.5,3098.1,0.1]
[1731721278917,3.22716,3098.7,3098.1,0.1]
[1731721279066,0.05115509,3098.4,3098.1,3.32776]
[1731721279266,3.22716,3098.7,3098.1,3.32776]
[1731721279528,4.33219922,3098.9,3098.2,3.22767]
[1731721279683,0.04738836,3098.6,3098.2,3.22767]
[1731721279886,3.22707,3098.8,3098.1,3.32776]
[1731721280068,0.59745177,3098.7,3098.1,0.1]
[1731721280393,0.59745177,3098.7,3098.2,3.22763]
[1731721280574,0.59745177,3098.7,3098.2,4.04193]
[1731721281397,0.04745177,3098.7,3098.4,3.22738]
[1731721281634,6.73729922,3099.2,3098.5,3.0]
[1731721281938,3.51059922,3099.2,3098.6,3.22726]
[1731721282102,0.8216,3099.4,3098.6,3.22726]
[1731721282297,4.04803,3099.4,3098.8,3.22705]
[1731721282530,3.51059922,3099.5,3098.8,3.22705]
[1731721282748,3.51059922,3099.5,3099.0,4.04114]
[1731721283061,3.51059922,3099.5,3099.0,0.8143]
[1731721283211,4.04762,3099.8,3099.0,0.8143]
[1731721283212,4.33219922,3099.8,3099.0,0.8143]
[1731721283394,4.33219922,3099.8,3099.2,3.22662]
[1731721284598,0.55,3099.7,3099.2,3.22662]
[1731721285037,3.77614,3099.7,3099.1,3.0]
[1731721285268,3.22627,3099.6,3099.1,3.0]
[1731721285439,3.22639,3099.5,3099.0,0.8143]
[1731721286533,3.604029,3099.5,3099.0,0.8143]
[1731721286732,3.22647,3099.4,3098.9,3.0]
[1731721287035,3.22656,3099.3,3098.7,7.01085]
[1731721287598,3.22656,3099.3,3098.7,3.7837]
[1731721290036,0.04691725,3099.2,3098.7,3.7837]
[1731721290437,0.04691725,3099.2,3098.7,7.01084]
[1731721291951,0.04691725,3099.2,3098.7,6.22714]
[1731721291952,0.80441725,3099.2,3098.7,6.22714]
[1731721292326,0.80441725,3099.2,3098.4,3.99712]
[1731721292327,4.03105725,3099.2,3098.5,3.0]
[1731721293237,4.03105725,3099.2,3098.7,3.0]
[1731721294733,0.80441725,3099.2,3098.7,3.0]
[1731721294932,0.80441725,3099.2,3098.8,3.22703]
[1731721295471,0.04691725,3099.2,3098.8,3.22703]
[1731721295763,0.55,3099.7,3098.8,3.22703]
[1731721295764,3.22602,3099.8,3099.2,3.22662]
[1731721295968,3.22581,3100.0,3099.1,3.0]
[1731721295969,3.22618,3099.7,3099.1,3.0]
[1731721296336,3.22618,3099.7,3099.0,3.22682]
[1731721296337,3.22638,3099.5,3099.0,3.22682]
[1731721296667,3.22638,3099.5,3098.9,6.22694]
[1731721297166,3.22638,3099.5,3098.5,3.0]
[1731721297167,3.22657,3099.3,3098.5,3.0]
[1731721297463,3.22679,3099.1,3098.5,3.0]
[1731721297667,3.22706,3098.8,3098.3,0.7697]
[1731721297833,0.322706,3098.7,3098.3,3.7697]
[1731721298033,0.7575,3098.8,3098.3,6.9972]
[1731721298225,0.7575,3098.8,3098.4,0.22]
[1731721298426,3.22723,3098.7,3098.1,0.1]
[1731721298744,3.22659,3099.3,3098.5,3.22729]
[1731721298745,3.22676,3099.1,3098.5,3.22729]
[1731721299072,3.98426,3099.1,3098.6,3.22726]
[1731721299278,0.7575,3099.5,3098.8,0.7697]
[1731721299429,0.7575,3099.5,3099.1,3.22673]
[1731721301235,0.7575,3099.7,3099.1,3.22666]
[1731721301584,3.548551,3099.9,3099.3,3.22645]
[1731721301878,3.22601,3099.8,3099.1,3.22666]
[1731721302048,3.9791981,3099.8,3099.1,3.22666]
[1731721303194,3.9791981,3099.8,3099.2,3.22662]
[1731721303564,3.22643,3099.4,3098.8,3.99669]
[1731721303768,0.322643,3099.4,3099.0,3.22676]
[1731721303962,0.7575,3099.9,3098.8,0.7697]
[1731721304169,3.22557,3100.3,3098.6,3.51059922]
[1731721304170,3.22571,3100.1,3099.5,3.22626]
[1731721304799,3.22571,3100.1,3099.6,3.22621]
[1731721304968,0.03830328,3100.0,3099.6,3.22621]
[1731721305290,0.03830328,3100.0,3099.7,3.22611]
[1731721305600,0.7575,3100.2,3099.7,3.22611]
[1731721305801,0.03823993,3099.9,3099.7,3.22611]
[1731721306095,0.398307,3100.1,3099.7,3.22611]
[1731721306256,0.03817657,3099.8,3099.7,3.22611]
[1731721306452,3.624007,3100.1,3099.5,3.22626]
[1731721306698,0.03817657,3099.8,3099.6,3.2262]
[1731721306872,3.2257,3100.1,3099.6,3.2262]
[1731721307072,0.0381132,3099.7,3099.6,3.2262]
[1731721307688,3.946577,3100.1,3099.6,3.2262]
[1731721307916,0.0381132,3099.7,3099.6,3.2262]
[1731721308143,3.22581,3100.0,3099.5,3.22626]
[1731721308278,0.0381132,3099.7,3099.5,3.22626]
[1731721308484,3.22581,3100.0,3099.5,3.22626]
[1731721308989,0.03823993,3099.9,3099.5,3.22626]
[1731721309832,0.03823993,3099.9,3099.7,3.22608]
[1731721309995,0.03823993,3099.9,3099.8,3.22601]
[1731721310318,3.22531,3100.5,3099.7,3.22608]
[1731721310319,3.22531,3100.5,3099.9,3.22584]
[1731721311320,3.22531,3100.5,3099.7,3.22608]
[1731721311321,3.22539,3100.4,3099.7,6.45211]
[1731721311502,3.22531,3100.5,3099.7,3.22603]
[1731721311805,3.22554,3100.3,3099.7,3.22603]
[1731721312411,6.849161,3100.5,3099.8,3.22598]
[1731721312711,3.2254,3100.4,3099.8,3.22598]
[1731721314042,3.22491,3100.9,3100.1,3.22567]
[1731721314043,3.22506,3100.8,3100.1,3.22567]
[1731721314251,3.22513,3100.7,3099.9,4.09697617]
[1731721314547,3.22513,3100.7,3100.0,3.22572]
[1731721314951,3.22526,3100.6,3100.0,3.22572]
[1731721315247,3.22526,3100.6,3099.9,4.09697617]
[1731721315248,3.22547,3100.4,3099.9,0.8066]
[1731721316263,3.22547,3100.4,3099.9,4.0325]
[1731721317469,0.55,3100.7,3099.9,4.0325]
[1731721317622,3.77509,3100.7,3100.1,3.22564]
[1731721318764,3.225,3100.8,3100.2,0.8066]
[1731721319149,3.2252,3100.6,3100.1,3.22564]
[1731721319318,3.87022,3100.6,3100.1,3.22564]
[1731721319865,3.87022,3100.6,3100.0,3.22579]
[1731721320069,0.03740854,3100.5,3100.0,3.22579]
[1731721320272,3.22552,3100.3,3099.9,0.8066]
[1731721320437,0.03740854,3100.5,3099.9,0.8066]
[1731721320759,3.87025,3100.6,3100.0,3.22577]
[1731721321060,0.0373452,3100.4,3100.0,3.22577]
[1731721321270,0.03740854,3100.5,3100.0,3.22577]
[1731721321572,0.0373452,3100.4,3100.0,3.22577]
[1731721321872,3.87025,3100.6,3100.0,3.22577]
[1731721322462,0.03740854,3100.5,3100.0,3.22577]
[1731721323489,3.26271854,3100.5,3100.0,3.22577]
[1731721323635,3.26271854,3100.5,3100.0,3.17577]
[1731721324142,4.59079,3100.4,3099.7,6.22603]
[1731721324462,3.22556,3100.3,3099.8,3.22598]
[1731721324783,0.03721852,3100.2,3099.8,3.29598]
[1731721324936,3.22556,3100.3,3099.8,3.29598]
[1731721325136,0.03722372,3100.2,3099.8,3.29598]
[1731721325365,3.77543,3100.4,3099.9,0.3222]
[1731721325576,3.77543,3100.4,3099.8,3.22598]
[1731721325577,0.03716037,3100.1,3099.8,3.22598]
[1731721325781,3.22529,3100.5,3099.9,3.22586]
[1731721326082,3.22511,3100.7,3100.2,3.22557]
[1731721326801,0.55,3100.9,3100.4,3.22537]
[1731721327146,3.77487,3100.9,3100.4,3.22537]
[1731721327655,3.22498,3100.8,3100.3,3.99329]
[1731721328364,0.8019,3101.0,3100.3,3.99329]
[1731721328365,4.02672,3101.0,3100.4,3.22532]
[1731721328764,3.22488,3100.9,3100.4,3.22532]
[1731721331001,8.92,3101.3,3101.0,3.22474]
[1731721331287,4.04459,3101.7,3101.1,3.99245]
[1731721331288,8.92,3101.4,3101.1,3.99245]
[1731721331450,4.04459,3101.7,3101.1,0.7678]
[1731721331451,12.14416,3101.6,3101.1,0.7678]
[1731721331656,3.22438,3101.4,3101.1,0.7678]
[1731721332310,12.548619,3101.6,3100.5,1.4185834]
[1731721332311,3.22462,3101.2,3100.5,1.4185834]
[1731721332447,3.22472,3101.1,3100.6,0.07]
[1731721332909,0.8205,3101.3,3100.6,0.07]
[1731721333104,4.04498,3101.3,3100.7,0.23820325]
[1731721333395,1.224994,3101.3,3100.6,3.2251]
[1731721333597,1.224994,3101.3,3100.7,0.23819979]
[1731721333802,1.224994,3101.3,3100.6,3.2251]
[1731721334174,3.22478,3101.0,3100.5,3.7678]
[1731721334499,3.22487,3100.9,3100.6,0.23824817]
[1731721334793,3.22487,3100.9,3100.5,3.0]
[1731721334794,0.03646313,3100.9,3100.5,3.0]
[1731721334964,3.22472,3101.1,3100.5,3.0]
[1731721335296,0.03639574,3100.8,3100.5,6.22528]
[1731721335595,3.6695434,3101.2,3100.6,3.22518]
[1731721335596,0.03633242,3100.7,3100.6,3.22518]
[1731721335749,4.04496,3101.3,3100.6,3.22518]
[1731721335950,0.036649,3101.2,3100.7,3.225]
[1731721337102,3.261209,3101.2,3100.7,3.225]
[1731721337453,3.261209,3101.2,3100.5,6.45046]
[1731721337660,3.22467,3101.1,3100.6,0.23820944]
[1731721338025,3.9918219,3101.2,3100.6,3.22509]
[1731721338026,0.03652586,3101.0,3100.6,3.22509]
[1731721338228,0.7306129,3101.2,3100.4,0.06450055]
[1731721338422,0.0364611,3100.9,3100.6,3.2251]
[1731721338626,3.9551629,3101.2,3100.6,3.2251]
[1731721338627,0.7306129,3101.2,3100.6,3.2251]
[1731721338858,0.01,3102.0,3100.4,0.21]
[1731721338859,3.77428,3101.5,3100.9,3.99258]
[1731721339358,3.22428,3101.5,3100.9,3.99258]
[1731721340569,3.22435,3101.4,3100.9,3.99258]
[1731721340916,0.8205,3101.6,3100.5,0.7678]
[1731721341162,1.5796676,3102.0,3100.6,0.21]
[1731721341163,0.8205,3101.1,3100.6,0.21]
[1731721341448,0.8205,3101.1,3100.5,0.7678]
[1731721341657,4.449771,3101.1,3100.5,0.7678]
[1731721341854,3.22478,3101.0,3100.5,0.7678]
[1731721342058,3.22481,3101.0,3100.5,0.7678]
[1731721342235,3.22481,3101.0,3100.5,3.99308]
[1731721342624,3.22489,3100.9,3100.5,0.7678]
[1731721342824,3.22489,3100.9,3100.3,6.99326]
[1731721344062,3.22504,3100.8,3100.3,0.7678]
[1731721344259,0.55,3101.0,3100.1,0.7678]
[1731721344447,7.27104,3100.6,3100.1,0.7678]
[1731721344832,4.04576,3100.6,3100.1,0.7678]
[1731721346566,3.22539,3100.4,3099.9,0.7752]
[1731721346864,3.22567,3100.2,3099.7,0.7752]
[1731721347580,4.04573,3100.6,3099.7,0.7752]
[1731721347883,3.22497,3100.8,3099.9,3.22586]
[1731721347884,0.55,3100.7,3099.9,3.22586]
[1731721348171,0.55,3100.7,3100.1,3.22563]
[1731721348172,4.5972556,3100.7,3100.1,3.22563]
[1731721348351,3.22508,3100.7,3100.1,6.45125]
[1731721348543,0.55,3100.8,3100.2,0.7752]
[1731721348741,0.948709,3100.8,3100.3,3.22546]
[1731721348942,4.173689,3100.8,3100.3,3.22546]
[1731721349864,3.22463,3101.2,3100.6,3.22518]
[1731721350185,3.98659,3101.4,3100.8,3.22496]
[1731721350393,0.03659528,3101.1,3100.9,0.7752]
[1731721350680,3.22439,3101.4,3100.9,4.00005]
[1731721350884,0.03653196,3101.0,3100.9,4.00005]
[1731721351481,3.22439,3101.4,3100.9,4.00005]
[1731721351655,0.03653196,3101.0,3100.9,4.00005]
[1731721352158,3.22439,3101.4,3100.9,4.00005]
[1731721352471,0.03672565,3101.3,3100.9,0.7752]
[1731721352885,0.55,3101.4,3100.9,3.99997]
[1731721353090,0.03666235,3101.2,3100.9,3.99997]
[1731721353285,0.03672565,3101.3,3100.9,3.99997]
[1731721353488,0.03659904,3101.1,3100.9,3.99997]
[1731721353635,0.55,3101.4,3100.9,3.99997]
[1731721354150,0.03672565,3101.3,3101.0,3.22469]
[1731721354674,0.7622,3101.7,3101.1,3.22465]
[1731721354848,0.03666235,3101.2,3101.1,3.22465]
[1731721355387,3.22394,3101.8,3101.3,3.22443]
[1731721355692,3.22384,3101.9,3101.4,0.7752]
[1731721355838,4.384512,3102.1,3101.4,0.7752]
[1731721356039,4.384512,3102.1,3101.6,3.22414]
[1731721356240,0.4384512,3102.0,3101.6,3.22414]
[1731721357075,3.6621912,3102.0,3101.4,3.99947]
[1731721357277,3.6621912,3102.0,3101.4,0.7752]
[1731721357278,3.22389,3101.9,3101.4,0.7752]
[1731721358161,3.22395,3101.8,3101.4,0.7752]